fUSD/lending_fUSD_20240818
["ID","MTS","AMOUNT","RATE_DAILY","PERIOD"]
[335227530,1723997443918,-1519.91618358,0.000109,2]
[335227531,1723997443927,-1519.91618358,0.000109,2]
[335227532,1723997443936,-1519.91618358,0.000109,2]
[335227533,1723997443944,-1519.91618358,0.000109,2]
[335227534,1723997443954,-240.705025,0.00010933,2]
[335227535,1723997443963,-150.0,0.00010944,2]
[335227536,1723997443972,-150.599,0.00010944,2]
[335227537,1723997443981,-150.042,0.00010944,2]
[335227538,1723997443990,-1257.0,0.00010944,2]
[335227539,1723997443999,-1543.0,0.00010944,2]
[335227540,1723997444011,-622.0,0.00010944,2]
[335227541,1723997444022,-150.0,0.00010944,2]
[335227542,1723997444032,-446.0,0.00010944,2]
[335227543,1723997444042,-810.0,0.00010944,2]
[335227544,1723997444052,-1137.0,0.00010944,2]
[335227545,1723997444061,-556.0,0.00010944,2]
[335227546,1723997444070,-1896.0,0.00010944,2]
[335227547,1723997444080,-551.0,0.00010944,2]
[335227548,1723997444089,-1169.0,0.00010944,2]
[335227549,1723997444098,-3318.0,0.00010944,2]
[335227550,1723997444107,-247.0,0.00010944,2]
[335227551,1723997444116,-151.0,0.00010944,2]
[335227552,1723997444126,-151.0,0.00010944,2]
[335227553,1723997444136,-263.705759,0.00010944,2]
[335227554,1723997444145,-263.705759,0.00010944,2]
[335227555,1723997444154,-151.0,0.00010944,2]
[335227556,1723997444164,-1543.103672,0.00010944,2]
[335227557,1723997444173,-1543.103672,0.00010944,2]
[335227558,1723997444183,-151.0,0.00010944,2]
[335227559,1723997444193,-371.820489,0.00010944,2]
[335227560,1723997444203,-371.820489,0.00010944,2]
[335227561,1723997444213,-151.0,0.00010949,2]
[335227562,1723997444222,-192.34002,0.00010949,2]
[335227563,1723997444231,-192.34002,0.00010949,2]
[335227564,1723997444240,-249.952359,0.00010949,2]
[335227565,1723997444249,-249.952359,0.00010949,2]
[335227566,1723997444258,-202.659344,0.00010949,2]
[335227567,1723997444267,-487.982758,0.00010949,2]
[335227568,1723997444277,-487.982758,0.00010949,2]
[335227569,1723997444286,-151.0,0.00010949,2]
[335227570,1723997444295,-161.14068,0.00010949,2]
[335227571,1723997444304,-760.45682958,0.00010949,2]
[335227572,1723997444314,-161.14068,0.00010949,2]
[335227573,1723997444323,-500.0,0.00010958,2]
[335227574,1723997444333,-277.24900695,0.00010958,2]
[335227575,1723997444342,-151.0,0.00010958,2]
[335227576,1723997444351,-207.277749,0.00010958,2]
[335227577,1723997444361,-151.0,0.00010958,2]
[335227578,1723997444371,-250.0,0.00010959,2]
[335227579,1723997444380,-476.454096,0.00010959,2]
[335227580,1723997444390,-476.454096,0.00010959,2]
[335227581,1723997444399,-500.0,0.0001096,2]
[335227582,1723997444408,-500.0,0.0001096,2]
[335227583,1723997444417,-500.0,0.0001096,2]
[335227584,1723997444426,-2435.35159018,0.00010987,2]
[335227585,1723997444436,-2000.0,0.00010989,2]
[335227586,1723997444445,-238.01687518,0.00010989,2]
[335227587,1723997444454,-299.600787,0.00010989,2]
[335227588,1723997444463,-151.472098,0.00010989,2]
[335227589,1723997444474,-151.0,0.00010989,2]
[335227590,1723997444484,-500.0,0.00010989,2]
[335227591,1723997444494,-445.431547,0.00010989,2]
[335227592,1723997444503,-445.431547,0.00010989,2]
[335227593,1723997444512,-240.809153,0.00010989,2]
[335227594,1723997444521,-240.809153,0.00010989,2]
[335227595,1723997444530,-151.0,0.00010989,2]
[335227596,1723997444539,-151.0,0.00010989,2]
[335227597,1723997444548,-151.0,0.00010989,2]
[335227598,1723997444557,-151.0,0.00010989,2]
[335227599,1723997444567,-248315.86908755,0.0001099,2]
[335227600,1723997444576,-151.0,0.0001099,2]
[335227601,1723997444585,-152.243331,0.0001099,2]
[335227602,1723997444594,-151.0,0.0001099,2]
[335227603,1723997444603,-476.454096,0.0001099,2]
[335227604,1723997444614,-476.454096,0.0001099,2]
[335227605,1723997444623,-151.0,0.0001099,2]
[335227606,1723997444631,-151.0,0.0001099,2]
[335227607,1723997444640,-151.0,0.0001099,2]
[335227608,1723997444649,-151.0,0.0001099,2]
[335227609,1723997444658,-192.34002,0.0001099,2]
[335227610,1723997444668,-192.34002,0.0001099,2]
[335227611,1723997444676,-151.614389,0.0001099,2]
[335227612,1723997444686,-151.0,0.0001099,2]
[335227613,1723997444695,-320.112531,0.0001099,2]
[335227614,1723997444705,-320.112531,0.0001099,2]
[335227615,1723997444714,-151.0,0.0001099,2]
[335227616,1723997444723,-151.0,0.0001099,2]
[335227617,1723997444733,-151.0,0.0001099,2]
[335227618,1723997444742,-151.0,0.0001099,2]
[335227619,1723997444751,-445.431547,0.0001099,2]
[335227620,1723997444761,-445.431547,0.0001099,2]
[335227621,1723997444771,-240.809153,0.0001099,2]
[335227622,1723997444780,-240.809153,0.0001099,2]
[335227623,1723997444789,-151.0,0.0001099,2]
[335227624,1723997444798,-151.0,0.0001099,2]
[335227625,1723997444807,-151.0,0.0001099,2]
[335227626,1723997444816,-151.0,0.0001099,2]
[335227627,1723997444826,-151.0,0.0001099,2]
[335227628,1723997444835,-151.0,0.0001099,2]
[335227629,1723997444843,-263.705759,0.0001099,2]
[335227630,1723997444852,-263.705759,0.0001099,2]
[335227631,1723997444862,-151.0,0.0001099,2]
[335227632,1723997445024,-1543.103672,0.0001099,2]
[335227633,1723997445034,-1543.103672,0.0001099,2]
[335227634,1723997445043,-151.0,0.0001099,2]
[335227635,1723997445053,-249.952359,0.0001099,2]
[335227636,1723997445063,-249.952359,0.0001099,2]
[335227637,1723997445072,-371.820489,0.0001099,2]
[335227638,1723997445082,-371.820489,0.0001099,2]
[335227639,1723997445091,-487.982758,0.0001099,2]
[335227640,1723997445100,-487.982758,0.0001099,2]
[335227641,1723997445109,-151.0,0.0001099,2]
[335227642,1723997445119,-151.0,0.0001099,2]
[335227643,1723997445128,-151.0,0.0001099,2]
[335227644,1723997445137,-161.14068,0.0001099,2]
[335227645,1723997445145,-161.14068,0.0001099,2]
[335227646,1723997445154,-152.189879,0.00010997,2]
[335227647,1723997445164,-151.0,0.00010997,2]
[335227648,1723997445173,-151.0,0.00010997,2]
[335227649,1723997445182,-151.890313,0.00010997,2]
[335227650,1723997445192,-151.0,0.00010997,2]
[335227651,1723997445201,-192.34002,0.00010997,2]
[335227652,1723997445210,-192.34002,0.00010997,2]
[335227653,1723997445221,-151.0,0.00010997,2]
[335227654,1723997445231,-320.112531,0.00010997,2]
[335227655,1723997445240,-320.112531,0.00010997,2]
[335227656,1723997445249,-151.0,0.00010997,2]
[335227657,1723997445258,-151.0,0.00010997,2]
[335227658,1723997445267,-151.0,0.00010997,2]
[335227659,1723997445276,-151.0,0.00010997,2]
[335227660,1723997445286,-217.874634,0.00010997,2]
[335227661,1723997445295,-217.874634,0.00010997,2]
[335227662,1723997445305,-151.0,0.00010997,2]
[335227663,1723997445314,-151.0,0.00010997,2]
[335227664,1723997445323,-151.0,0.00010997,2]
[335227665,1723997445333,-445.431547,0.00010997,2]
[335227666,1723997445343,-445.431547,0.00010997,2]
[335227667,1723997445352,-240.809153,0.00010997,2]
[335227668,1723997445361,-240.809153,0.00010997,2]
[335227669,1723997445372,-151.0,0.00010997,2]
[335227670,1723997445381,-151.0,0.00010997,2]
[335227671,1723997445390,-151.0,0.00010997,2]
[335227672,1723997445400,-151.0,0.00010997,2]
[335227673,1723997445409,-218.979717,0.00010997,2]
[335227674,1723997445419,-151.0,0.00010997,2]
[335227675,1723997445428,-263.705759,0.00010997,2]
[335227676,1723997445438,-263.705759,0.00010997,2]
[335227677,1723997445448,-151.0,0.00010997,2]
[335227678,1723997445458,-1543.103672,0.00010997,2]
[335227679,1723997445467,-1543.103672,0.00010997,2]
[335227680,1723997445479,-151.0,0.00010997,2]
[335227681,1723997445488,-249.952359,0.00010997,2]
[335227682,1723997445498,-249.952359,0.00010997,2]
[335227683,1723997445507,-371.820489,0.00010997,2]
[335227684,1723997445516,-371.820489,0.00010997,2]
[335227685,1723997445526,-487.982758,0.00010997,2]
[335227686,1723997445535,-487.982758,0.00010997,2]
[335227687,1723997445544,-151.0,0.00010997,2]
[335227688,1723997445554,-151.0,0.00010997,2]
[335227689,1723997445563,-151.0,0.00010997,2]
[335227690,1723997445572,-161.14068,0.00010997,2]
[335227691,1723997445583,-161.14068,0.00010997,2]
[335227692,1723997445592,-19482.81272144,0.00010997,2]
[335227693,1723997445602,-476.454096,0.00010998,2]
[335227694,1723997445611,-476.454096,0.00010998,2]
[335227695,1723997445621,-151.0,0.00010998,2]
[335227696,1723997445630,-1543.103672,0.00010998,2]
[335227697,1723997445640,-1543.103672,0.00010998,2]
[335227698,1723997445649,-151.0,0.00010998,2]
[335227699,1723997445658,-371.820489,0.00010998,2]
[335227700,1723997445668,-371.820489,0.00010998,2]
[335227701,1723997445677,-151.0,0.00010998,2]
[335227702,1723997445686,-151.0,0.00010998,2]
[335227703,1723997445697,-775.04547332,0.00010998,3]
[335227704,1723997445707,-2000.0,0.00010999,2]
[335227705,1723997445716,-500.0,0.00010999,2]
[335227706,1723997445726,-500.0,0.00010999,2]
[335227707,1723997445735,-500.0,0.00010999,2]
[335227708,1723997445745,-500.0,0.00010999,2]
[335227709,1723997445754,-500.0,0.00010999,2]
[335227710,1723997445764,-500.0,0.00010999,2]
[335227711,1723997445773,-500.0,0.00010999,2]
[335227712,1723997445783,-922.0,0.00010999,2]
[335227713,1723997445792,-1000.0,0.00010999,2]
[335227714,1723997445802,-1000.0,0.00010999,2]
[335227715,1723997445811,-1000.0,0.00010999,2]
[335227716,1723997445820,-1000.0,0.00010999,2]
[335227717,1723997445829,-1000.0,0.00010999,2]
[335227718,1723997445838,-1106.19059868,0.00010999,3]
[335227720,1723997445847,-1106.19059868,0.00010999,3]
[335227721,1723997445856,-1106.19059867,0.00010999,3]
[335227723,1723997445866,-1000.0,0.00010999,2]
[335227725,1723997445882,-1031.54405097,0.00010999,3]
[335227726,1723997445892,-1031.54405097,0.00010999,3]
[335227727,1723997445902,-1000.0,0.00010999,2]
[335227728,1723997445911,-5800.0,0.00010999,2]
[335227730,1723997445921,-750.0,0.00010999,2]
[335227732,1723997445931,-151.915282,0.00010999,2]
[335227734,1723997445941,-341.41197508,0.00010999,2]
[335227736,1723997445950,-151.0,0.00010999,2]
[335227738,1723997445959,-151.0,0.00010999,2]
[335227739,1723997445969,-476.454096,0.00010999,2]
[335227742,1723997445978,-476.454096,0.00010999,2]
[335227744,1723997445988,-476.454096,0.00010999,2]
[335227746,1723997445997,-476.454096,0.00010999,2]
[335227748,1723997446007,-151.864602,0.00010999,2]
[335227750,1723997446017,-151.0,0.00010999,2]
[335227752,1723997446026,-151.0,0.00010999,2]
[335227754,1723997446036,-5800.0,0.00010999,2]
[335227756,1723997446046,-151.0,0.00010999,2]
[335227757,1723997446055,-266.81501,0.00010999,2]
[335227759,1723997446065,-192.34002,0.00010999,2]
[335227761,1723997446075,-192.34002,0.00010999,2]
[335227763,1723997446084,-192.34002,0.00010999,2]
[335227765,1723997446094,-192.34002,0.00010999,2]
[335227767,1723997446103,-151.0,0.00010999,2]
[335227769,1723997446112,-151.0,0.00010999,2]
[335227771,1723997446122,-320.112531,0.00010999,2]
[335227773,1723997446131,-320.112531,0.00010999,2]
[335227775,1723997446140,-320.112531,0.00010999,2]
[335227777,1723997446150,-320.112531,0.00010999,2]
[335227779,1723997446160,-161.153664,0.00010999,2]
[335227781,1723997446170,-151.0,0.00010999,2]
[335227783,1723997446180,-151.0,0.00010999,2]
[335227784,1723997446189,-151.0,0.00010999,2]
[335227786,1723997446199,-151.0,0.00010999,2]
[335227788,1723997446208,-151.0,0.00010999,2]
[335227790,1723997446218,-281.212995,0.00010999,2]
[335227792,1723997446227,-217.874634,0.00010999,2]
[335227794,1723997446236,-217.874634,0.00010999,2]
[335227796,1723997446245,-217.874634,0.00010999,2]
[335227797,1723997446256,-217.874634,0.00010999,2]
[335227798,1723997446266,-151.0,0.00010999,2]
[335227799,1723997446275,-151.0,0.00010999,2]
[335227800,1723997446284,-151.0,0.00010999,2]
[335227801,1723997446294,-151.0,0.00010999,2]
[335227802,1723997446303,-151.0,0.00010999,2]
[335227803,1723997446312,-151.0,0.00010999,2]
[335227804,1723997446321,-500.0,0.00010999,2]
[335227805,1723997446331,-500.00000075,0.00010999,2]
[335227806,1723997446340,-445.431547,0.00010999,2]
[335227807,1723997446350,-445.431547,0.00010999,2]
[335227808,1723997446360,-445.431547,0.00010999,2]
[335227809,1723997446372,-445.431547,0.00010999,2]
[335227810,1723997446381,-240.809153,0.00010999,2]
[335227811,1723997446391,-240.809153,0.00010999,2]
[335227813,1723997446400,-240.809153,0.00010999,2]
[335227815,1723997446410,-240.809153,0.00010999,2]
[335227817,1723997446419,-151.0,0.00010999,2]
[335227819,1723997446429,-151.0,0.00010999,2]
[335227820,1723997446438,-151.0,0.00010999,2]
[335227821,1723997446448,-151.0,0.00010999,2]
[335227822,1723997446457,-151.0,0.00010999,2]
[335227823,1723997446467,-151.0,0.00010999,2]
[335227824,1723997446479,-151.0,0.00010999,2]
[335227825,1723997446489,-151.0,0.00010999,2]
[335227826,1723997446499,-151.0,0.00010999,2]
[335227827,1723997446509,-151.0,0.00010999,2]
[335227828,1723997446520,-151.0,0.00010999,2]
[335227829,1723997446530,-263.705759,0.00010999,2]
[335227830,1723997446539,-263.705759,0.00010999,2]
[335227831,1723997446548,-263.705759,0.00010999,2]
[335227832,1723997446559,-263.705759,0.00010999,2]
[335227833,1723997446568,-263.705759,0.00010999,2]
[335227835,1723997446577,-263.705759,0.00010999,2]
[335227836,1723997446587,-151.0,0.00010999,2]
[335227837,1723997446596,-151.0,0.00010999,2]
[335227838,1723997446606,-1543.103672,0.00010999,2]
[335227839,1723997446618,-1543.103672,0.00010999,2]
[335227840,1723997446627,-1543.103672,0.00010999,2]
[335227841,1723997446636,-1543.103672,0.00010999,2]
[335227842,1723997446646,-151.0,0.00010999,2]
[335227843,1723997446655,-151.0,0.00010999,2]
[335227845,1723997446665,-249.952359,0.00010999,2]
[335227846,1723997446674,-249.952359,0.00010999,2]
[335227848,1723997446684,-249.952359,0.00010999,2]
[335227850,1723997446694,-249.952359,0.00010999,2]
[335227852,1723997446703,-249.952359,0.00010999,2]
[335227854,1723997446713,-249.952359,0.00010999,2]
[335227856,1723997446722,-371.820489,0.00010999,2]
[335227858,1723997446731,-371.820489,0.00010999,2]
[335227860,1723997446741,-371.820489,0.00010999,2]
[335227862,1723997446750,-371.820489,0.00010999,2]
[335227864,1723997446759,-487.982758,0.00010999,2]
[335227866,1723997446768,-487.982758,0.00010999,2]
[335227868,1723997446777,-487.982758,0.00010999,2]
[335227870,1723997446786,-487.982758,0.00010999,2]
[335227872,1723997446796,-487.982758,0.00010999,2]
[335227874,1723997446805,-487.982758,0.00010999,2]
[335227875,1723997446814,-203.741502,0.00010999,2]
[335227877,1723997446823,-151.0,0.00010999,2]
[335227879,1723997446832,-274.070958,0.00010999,2]
[335227881,1723997446842,-151.0,0.00010999,2]
[335227883,1723997446851,-151.0,0.00010999,2]
[335227885,1723997446860,-161.14068,0.00010999,2]
[335227887,1723997446869,-161.14068,0.00010999,2]
[335227889,1723997446879,-161.14068,0.00010999,2]
[335227891,1723997446890,-303.90593034,0.00010999,2]
[335227893,1723997446899,-161.14068,0.00010999,2]
[335227895,1723997446909,-161.14068,0.00010999,2]
[335227896,1723997446917,-161.14068,0.00010999,2]
[335227898,1723997446926,-286399.29154174,0.00011,2]
[335227901,1723997446942,-1612.32159237,0.00011,2]
[335227903,1723997446953,-369.04840763,0.00011,2]
[335227910,1723997447016,-250.326455,0.00010949,2]
[335227912,1723997447026,-250.326455,0.0001099,2]
[335227914,1723997447035,-250.326455,0.00010997,2]
[335227915,1723997447045,-250.326455,0.00010999,2]
[335227917,1723997447054,-250.326455,0.00010999,2]
[335227919,1723997447063,-31271.97172423,0.00011,2]
[335227921,1723997447072,-682.70876067,0.00011,2]
[335227923,1723997447084,-299.55936125,0.00011,2]
[335227925,1723997447093,-23.33223875,0.00011,2]
[335227928,1723997447107,-68500.00001,0.00011,2]
[335227930,1723997447119,-416.0689448,0.00011,2]
[335227932,1723997447131,-393.84558329,0.00011,2]
[335227934,1723997447142,-567.96560199,0.00011,2]
[335228178,1723997510256,500.0,9.275e-05,2]
[335228179,1723997510512,500.0,8.22e-05,2]
[335228180,1723997580742,840.0,9.9e-05,2]
[335228181,1723997621715,434.35,8.219e-05,2]
[335228190,1723998002731,152.88,0.00013,31]
[335228191,1723998002804,152.88,0.00013,31]
[335228192,1723998002851,152.88,0.00013,31]
[335228193,1723998002912,152.88,0.00013,31]
[335228194,1723998002971,152.88,0.00013,31]
[335228195,1723998003050,152.88,0.00013,31]
[335228196,1723998003110,152.88,0.00013,31]
[335228197,1723998003174,152.88,0.00013,31]
[335228198,1723998003229,152.88,0.00013,31]
[335228199,1723998003311,152.88,0.00013,31]
[335228200,1723998003355,152.88,0.00013,31]
[335228201,1723998003385,152.88,0.00013,31]
[335228202,1723998003461,152.88,0.00013,31]
[335228203,1723998003541,152.88,0.00013,31]
[335228206,1723998027001,162.2,9.873e-05,2]
[335228207,1723998040906,243.95,9.874e-05,2]
[335228208,1723998040932,84.05,9.874e-05,2]
[335228210,1723998245577,117.95,9.943e-05,2]
[335228211,1723998245599,37.05,9.943e-05,2]
[335228215,1723998344672,-300.0,0.00010399,2]
[335228216,1723998357644,-19500.0,0.000104,2]
[335228217,1723998373240,412.63,8.219e-05,2]
[335228223,1723998474415,4445.67717316,9.86e-05,2]
[335228224,1723998474437,9036.43282684,9.86e-05,2]
[335228225,1723998495677,411.007609,9.976e-05,2]
[335228226,1723998535272,500.0,9.275e-05,2]
[335228227,1723998535572,52.55956416,8.22e-05,2]
[335228228,1723998535593,447.44043584,8.22e-05,2]
[335228229,1723998535693,500.0,9.275e-05,2]
[335228230,1723998538005,500.0,9.275e-05,2]
[335228231,1723998559201,264.54478532,9.86e-05,2]
[335228232,1723998560750,1308.18465589,9.275e-05,2]
[335228233,1723998569005,3053.1830351,9.275e-05,2]
[335228234,1723998571975,500.0,9.275e-05,2]
[335228235,1723998580071,752.83186383,9.275e-05,2]
[335228238,1723998609995,152.9,0.00013,31]
[335228239,1723998610050,152.9,0.00013,31]
[335228240,1723998610109,152.9,0.00013,31]
[335228241,1723998610171,152.9,0.00013,31]
[335228242,1723998610230,152.9,0.00013,31]
[335228243,1723998610295,152.9,0.00013,31]
[335228244,1723998610351,152.9,0.00013,31]
[335228260,1723998633847,-270.58164358,9.988e-05,2]
[335228261,1723998633857,-117.81294001,0.00010203,2]
[335228262,1723998634029,-1202.3011,0.00010203,2]
[335228263,1723998634044,-628.4461735,0.00010203,2]
[335228264,1723998634060,-599.9,0.00010203,2]
[335228265,1723998634071,-494.33663641,0.00010203,2]
[335228266,1723998634083,-1731.28504997,0.00010203,2]
[335228267,1723998634094,-1001.07908928,0.00010203,2]
[335228268,1723998634109,-817.92,0.00010203,2]
[335228269,1723998634763,737.6,9.866e-05,2]
[335228270,1723998637427,190.24,9.867e-05,2]
[335228274,1723998638176,-285.49172499,0.00010203,2]
[335228275,1723998638234,-464.49215407,0.00010203,2]
[335228276,1723998638245,-655.46979079,0.00010203,2]
[335228277,1723998638257,-19053.46534098,0.00010203,2]
[335228278,1723998638266,-412.63,0.00010469,2]
[335228279,1723998638275,-500.0,0.00010645,2]
[335228280,1723998638285,-150.0,0.00010719,2]
[335228281,1723998638294,-150.0,0.00010721,2]
[335228282,1723998638303,-150.0,0.00010726,2]
[335228283,1723998638312,-150.0,0.00010728,2]
[335228284,1723998638321,-150.0,0.0001073,2]
[335228285,1723998638331,-682.23,0.0001073,2]
[335228286,1723998638344,-282.48,0.00010732,2]
[335228287,1723998638355,-150.0,0.00010735,2]
[335228288,1723998638364,-1500.0,0.00010735,2]
[335228289,1723998638373,-150.0,0.00010736,2]
[335228290,1723998638383,-150.0,0.00010743,2]
[335228291,1723998638393,-150.0,0.00010745,2]
[335228292,1723998638404,-200.0,0.00010749,2]
[335228293,1723998638414,-173.0,0.0001076,2]
[335228294,1723998638424,-150.0,0.00010765,2]
[335228295,1723998638434,-150.0,0.00010768,2]
[335228296,1723998638444,-150.0,0.00010769,2]
[335228297,1723998638453,-150.0,0.00010772,2]
[335228298,1723998638463,-150.0,0.00010774,2]
[335228299,1723998638472,-500.57827625,0.00010775,2]
[335228301,1723998638482,-150.0,0.00010776,2]
[335228303,1723998638493,-150.0,0.00010777,2]
[335228305,1723998638502,-150.0,0.00010777,2]
[335228306,1723998638511,-1500.0,0.00010778,2]
[335228308,1723998638521,-150.0,0.00010778,2]
[335228310,1723998638530,-150.0,0.00010781,2]
[335228312,1723998638539,-1500.0,0.00010786,2]
[335228314,1723998638548,-150.0,0.00010787,2]
[335228316,1723998638558,-150.0,0.00010789,2]
[335228318,1723998638568,-150.0,0.00010789,2]
[335228319,1723998638577,-150.0,0.00010789,2]
[335228321,1723998638586,-150.0,0.00010791,2]
[335228323,1723998638595,-93.78530777,0.00010792,2]
[335228326,1723998638607,-56.21469223,0.00010792,2]
[335228328,1723998638618,-225.83227752,0.00010794,2]
[335228330,1723998638629,-74.86973713,0.00010794,2]
[335228332,1723998638639,-150.0,0.00010795,2]
[335228334,1723998638648,-341.89380345,0.00010796,2]
[335228337,1723998638665,-544.01346895,0.00010796,2]
[335228339,1723998638676,-614.0927276,0.00010796,2]
[335228341,1723998638687,-150.0,0.00010798,2]
[335228343,1723998638697,-926.25003442,0.000108,2]
[335228345,1723998638707,-238.42956105,0.00010802,2]
[335228347,1723998638717,-150.0,0.00010806,2]
[335228349,1723998638727,-150.0,0.00010807,2]
[335228351,1723998638738,-226.2741535,0.00010817,2]
[335228353,1723998638749,-150.0,0.00010818,2]
[335228355,1723998638760,-1500.0,0.00010821,2]
[335228357,1723998638769,-150.0,0.00010825,2]
[335228359,1723998638778,-1500.0,0.00010828,2]
[335228361,1723998638788,-150.0,0.00010829,2]
[335228363,1723998638797,-150.0,0.00010829,2]
[335228365,1723998638805,-150.0,0.00010835,2]
[335228367,1723998638815,-150.0,0.00010835,2]
[335228369,1723998638827,-150.0,0.00010838,2]
[335228371,1723998638836,-150.0,0.0001084,2]
[335228373,1723998638845,-1500.0,0.00010847,2]
[335228375,1723998638856,-1500.0,0.00010849,2]
[335228377,1723998638868,-1500.0,0.00010852,2]
[335228379,1723998638877,-150.0,0.00010855,2]
[335228381,1723998638887,-150.0,0.00010855,2]
[335228382,1723998638896,-150.0,0.0001086,2]
[335228384,1723998638907,-650.89584616,0.00010861,2]
[335228386,1723998638916,-155.0,0.00010862,2]
[335228388,1723998638925,-150.0,0.00010864,2]
[335228390,1723998638934,-150.0,0.00010869,2]
[335228392,1723998638944,-150.0,0.00010877,2]
[335228394,1723998638954,-150.0,0.00010882,2]
[335228396,1723998638963,-150.0,0.00010884,2]
[335228398,1723998638972,-1399.05767727,0.00010884,2]
[335228400,1723998638984,-100.94232273,0.00010884,2]
[335228402,1723998638993,-150.0,0.00010885,2]
[335228404,1723998639002,-300.0,0.00010888,2]
[335228406,1723998639012,-49.05767727,0.00010888,2]
[335228408,1723998639024,-100.94232273,0.00010888,2]
[335228410,1723998639034,-150.0,0.00010897,2]
[335228412,1723998639042,-462.57856848,0.000109,2]
[335228415,1723998639057,-1955.00264227,0.000109,2]
[335228417,1723998639066,-3625.89819316,0.000109,2]
[335228419,1723998639075,-2000.0,0.000109,2]
[335228420,1723998639084,-1000.0,0.000109,2]
[335228422,1723998639093,-1000.0,0.000109,2]
[335228423,1723998639103,-1008.0,0.000109,2]
[335228425,1723998639112,-506.0,0.000109,2]
[335228427,1723998639121,-2500.0,0.000109,2]
[335228429,1723998639130,-2500.0,0.000109,2]
[335228431,1723998639139,-165.19422617,0.000109,2]
[335228433,1723998639148,-150.0,0.00010903,2]
[335228435,1723998639157,-1500.0,0.00010906,2]
[335228437,1723998639168,-150.0,0.00010907,2]
[335228439,1723998639177,-150.0,0.00010908,2]
[335228441,1723998639186,-150.0,0.00010926,2]
[335228443,1723998639196,-1500.0,0.00010927,2]
[335228445,1723998639205,-150.0,0.00010931,2]
[335228447,1723998639214,-150.0,0.00010932,2]
[335228449,1723998639223,-150.0,0.00010942,2]
[335228451,1723998639231,-1896.0,0.00010944,2]
[335228453,1723998639240,-551.0,0.00010944,2]
[335228454,1723998639250,-597.8809932,0.00010944,2]
[335228457,1723998639262,-2720.1190068,0.00010944,2]
[335228459,1723998639271,-1169.0,0.00010944,2]
[335228461,1723998639279,-289.0,0.00010944,2]
[335228463,1723998639288,-320.251,0.00010944,2]
[335228465,1723998639298,-625.607,0.00010944,2]
[335228466,1723998639307,-831.659,0.00010944,2]
[335228468,1723998639315,-150.0,0.00010947,2]
[335228470,1723998639325,-150.0,0.00010947,2]
[335228472,1723998639333,-150.0,0.00010951,2]
[335228474,1723998639342,-150.0,0.00010952,2]
[335228476,1723998639352,-150.0,0.00010954,2]
[335228478,1723998639360,-250.0,0.00010959,2]
[335228480,1723998639370,-500.0,0.0001096,2]
[335228482,1723998639379,-150.0,0.00010961,2]
[335228484,1723998639388,-150.0,0.00010964,2]
[335228486,1723998639397,-150.0,0.00010965,2]
[335228488,1723998639407,-150.0,0.00010965,2]
[335228490,1723998639416,-150.0,0.00010966,2]
[335228492,1723998639426,-150.0,0.00010967,2]
[335228493,1723998639435,-1500.0,0.0001097,2]
[335228495,1723998639445,-154.63661163,0.00010976,2]